Cogmind - Beta 13 @@@ ROGUE MODE // 2024.04.06 @ 15:50:32 Player: triplej Result: Destroyed by Y-45 Defender with Beam Rifle Performance ------------- Evolutions (1) 500 Regions Visited (2) 400 Robots Destroyed (24) 120 Value Destroyed (670) 670 Prototype IDs (0) 0 Alien Tech Used (0) 0 Bonus (0) 0 TOTAL SCORE: 1690 Bonus ------- None Cogmind --------- Core Integrity 0/400 Matter 300/300 Energy 98/100 System Corruption 0% Temperature Cool (34) Movement Walking (120) Location -9/Materials Parts ------- > --- POWER (2) -------- (None) > --- PROPULSION (2) --- Aluminum Leg > --- UTILITY (3) ------ Small Storage Unit Visual Processing Unit Signal Interpreter > --- WEAPON (2) ------- Light Assault Rifle > --- INVENTORY (8) ---- Aluminum Leg Improved Aluminum Leg Light Armor Plating Light Assault Rifle Peak State ------------ > --- POWER ------------ Ion Engine Light Nuclear Core > --- PROPULSION ------- Aluminum Leg Aluminum Leg > --- UTILITY ---------- Small Storage Unit Signal Interpreter Terrain Scan Processor > --- WEAPON ----------- Assault Rifle Light Cannon > --- INVENTORY -------- Ion Engine Light Treads Light Treads Aluminum Leg Aluminum Leg Small Laser [Rating: 12] Favorites ----------- Power Ion Engine Engine Ion Engine Power Core Light Nuclear Core Propulsion Aluminum Leg Leg Aluminum Leg Utility Small Storage Unit Storage Small Storage Unit Processor Signal Interpreter Weapon Light Assault Rifle Energy Gun Small Laser Ballistic Gun Light Assault Rifle Ballistic Cannon Light Cannon Build | -11 -10 -9 ------- Run | Yrd Mat Mat Slots Evolved 2 | . . 2 Power 1 | . . 1 Propulsion . | . . . Utility 1 | . . 1 Weapon . | . . . Parts Attached 29 | 4 8 17 Power 8 | 1 1 6 Engine 6 | 1 . 5 Core 2 | . 1 1 Reactor . | . . . Propulsion 8 | 2 1 5 Treads . | . . . Leg 8 | 2 1 5 Wheel . | . . . Hover . | . . . Flight . | . . . Utility 5 | 1 2 2 Device . | . . . Storage 2 | 1 1 . Processor 3 | . 1 2 Hackware . | . . . Protection . | . . . Artifact . | . . . Weapon 8 | . 4 4 Energy Gun 4 | . 2 2 Energy Cannon . | . . . Ballistic Gun 3 | . 1 2 Ballistic Cannon 1 | . 1 . Launcher . | . . . Special Weapon . | . . . Impact Weapon . | . . . Slashing Weapon . | . . . Piercing Weapon . | . . . Special Melee Weapon . | . . . Unidentified Prototypes . | . . . Parts Lost 18 | . 2 16 Power 6 | . . 6 Propulsion 6 | . 1 5 Utility . | . . . Weapon 6 | . 1 5 Highest Loss Streak 6 | . 1 6 To Critical Strikes . | . . . Average Slot Usage (%) 93 | . 89 96 Engine 9 | . 3 12 Core 7 | . 10 6 Leg 22 | . 24 21 Storage 11 | . 14 11 Processor 16 | . 7 21 Energy Gun 6 | . 7 6 Ballistic Gun 12 | . 14 11 Ballistic Cannon 5 | . 7 4 Naked Turns . | . . . Heaviest Build 20 | 10 15 20 Greatest Support 20 | 20 20 20 Greatest Overweight (x) 3 | 3 1 1 Average Overweight (x) . | . . . Largest Inventory Capacity 25 | 8 25 8 Average Capacity 8 | 7 8 8 Most Carried 8 | 8 8 7 Average Carried 5 | 6 6 4 Final Capacity 8 | 8 8 8 Final Carried 8 | 8 7 4 Class Distribution -------------------- 51% | Mutant 48% | Scavenger-Mutant Dominant Class ---------------- Mutant | -10/Materials Scavenger-Mutant | -9/Materials Resources | -11 -10 -9 ----------- Run | Yrd Mat Mat Matter Collected 709 | 221 209 279 Remotely . | . . . Salvage Created 903 | . 424 479 Parts 48 | . 21 27 Haulers Intercepted . | . . . Recyclers Shooed 2 | . 2 . Parts Field Recycled . | . . . Retrieved Matter . | . . . Parts Self-Destructed . | . . . Prevented . | . . . Kills | -11 -10 -9 ------- Run | Yrd Mat Mat Combat Hostiles Destroyed 21 | . 6 15 Guns 13 | . 4 9 Cannons 8 | . 2 6 Classes Destroyed 5 | . 2 3 Recycler 2 | . 2 . Watcher 1 | . . 1 Swarmer 6 | . . 6 Grunt 12 | . 6 6 Sentry 3 | . . 3 Best Kill Streak 5 | . 4 5 Combat Bots Only 5 | . 2 5 Max Kills in Single Turn 1 | . 1 1 Gunslinging . | . . . Exploded . | . . . Melee . | . . . Uniques/NPCs Destroyed . | . . . Combat | -11 -10 -9 -------- Run | Yrd Mat Mat Hostile Shots Fired 278 | . 51 227 Missed 100 | . 15 85 Damage Taken 2087 | . 458 1629 Core 488 | . 85 403 Absorbed by Shields . | . . . Core Remaining (%) 83 | 100 66 . Volleys Fired 92 | . 30 62 Largest 2 | . 2 2 Hottest 75 | . 60 75 Shots Fired 170 | . 57 113 Gun 134 | . 49 85 Cannon 36 | . 8 28 Launcher . | . . . Special . | . . . Kinetic 115 | . 38 77 Thermal 45 | . 9 36 Explosive . | . . . Electromagnetic 10 | . 10 . Robot Hit Streak 10 | . 10 7 Robot Miss Streak 4 | . 3 4 Penetration Max . | . . . Secondary Targets . | . . . Shots Hit Robots 104 | . 39 65 Core Hits 47 | . 17 30 Critical Kills . | . . . Critical Parts Destroyed . | . . . Critical Strikes . | . . . Melee Attacks . | . . . Impact . | . . . Slashing . | . . . Piercing . | . . . Sneak Attacks . | . . . Combat Hostiles . | . . . Follow-up Attacks . | . . . Damage Inflicted 1326 | . 506 820 Guns 901 | . 431 470 Cannons 422 | . 72 350 Explosions . | . . . Melee . | . . . Ramming 3 | . 3 . Kinetic 936 | . 344 592 Thermal 293 | . 65 228 Explosive . | . . . Electromagnetic 94 | . 94 . Impact . | . . . Slashing . | . . . Piercing . | . . . Highest Corruption . | . . . Average Corruption . | . . . Corruption Purged . | . . . Corruption Blocked . | . . . Overload Shots . | . . . Overflow Damage . | . . . Projectiles . | . . . Explosions . | . . . Melee . | . . . Knockbacks 3 | . 1 2 Impact . | . . . Kinetic 3 | . 1 2 Secondary . | . . . Self-Inflicted Damage . | . . . Shots . | . . . Rammed . | . . . Targets Rammed 1 | . 1 . Kicked 1 | . 1 . Crushed . | . . . Highest Temperature 152 | . 60 152 Average Temperature 45 | . 23 53 Received Heat Transfer 912 | . 297 615 Siege Activations . | . . . Robots Corrupted . | . . . Combat Hostiles . | . . . Parts Fried . | . . . Impact Corruptions . | . . . Robots Melted . | . . . Combat Hostiles . | . . . Parts Melted 1 | . . 1 Heat Transferred 675 | . 150 525 Parts Sabotaged . | . . . Parts Stolen . | . . . Parts Stripped . | . . . Power Chain Reactions . | . . . Alert | -11 -10 -9 ------- Run | Yrd Mat Mat Peak Influence 333 | . 201 333 Initial 84 | . . 84 Average 174 | . 123 215 Maximum Alert Level 1 | . 1 1 Low Security (%) 52 | 100 86 32 Level 1 47 | . 13 67 Level 2 . | . . . Level 3 . | . . . Level 4 . | . . . Level 5 . | . . . High Security . | . . . Max Security . | . . . Squads Dispatched 6 | . 3 3 Investigation . | . . . Extermination . | . . . Reinforcement 6 | . 3 3 Assault . | . . . Garrison . | . . . Intercept . | . . . Searches Triggered . | . . . Construction Impeded . | . . . Haulers Reinforced . | . . . Active Scanning Responses . | . . . Cargo Convoy Interrupts . | . . . Stealth | -11 -10 -9 --------- Run | Yrd Mat Mat Distress Signals 3 | . 2 1 Communications Jammed . | . . . Distress Signals . | . . . Times Spotted 45 | . 16 29 Peak Tracking Total 7 | . 4 7 Tactical Retreats 1 | . 1 . Traps | -11 -10 -9 ------- Run | Yrd Mat Mat Traps Triggered 1 | . . 1 Indirectly . | . . . Trap Hack Attempts . | . . . Triggered . | . . . Disarmed . | . . . Reprogrammed . | . . . Reused . | . . . Traps Extracted . | . . . Installed . | . . . Triggered . | . . . Machines | -11 -10 -9 ---------- Run | Yrd Mat Mat Machines Disabled . | . . . Max in Single Turn . | . . . Machines Repaired . | . . . Machines Dismantled . | . . . Machines Sabotaged . | . . . Overloaded Fab Kills . | . . . Hacking | -11 -10 -9 --------- Run | Yrd Mat Mat Machines Accessed 5 | . . 5 Terminals 4 | . . 4 Fabricators . | . . . Repair Stations . | . . . Recycling Units 1 | . . 1 Scanalyzers . | . . . Garrison Access . | . . . Total Hacks 9 | . . 9 Successful 6 | . . 6 Failed 3 | . . 3 Catastrophic 1 | . . 1 Database Lockouts . | . . . Manual . | . . . Terminals 8 | . . 8 Fabricators . | . . . Repair Stations . | . . . Recycling Units 1 | . . 1 Scanalyzers . | . . . Garrison Access . | . . . Terminal Hacks 5 | . . 5 Record 2 | . . 2 Dispatch Records 1 | . . 1 Maintenance Status 1 | . . 1 Zone Layout 1 | . . 1 Fabricator Hacks . | . . . Repair Station Hacks . | . . . Recycling Unit Hacks 1 | . . 1 Process 1 | . . 1 Scanalyzer . | . . . Garrison Access Hacks . | . . . Unauthorized Hacks . | . . . Terminals . | . . . Fabricators . | . . . Repair Stations . | . . . Recycling Units . | . . . Scanalyzers . | . . . Garrison Access . | . . . Data Cores Recovered . | . . . Used . | . . . Hacking Detections 3 | . . 3 Full Trace Events . | . . . Feedback Events . | . . . Feedback Blocked . | . . . Robot Schematics Acquired . | . . . Robots Built . | . . . Authchips . | . . . Time . | . . . Total Robot Build Rating . | . . . Part Schematics Acquired . | . . . Parts Built . | . . . Authchips . | . . . Time . | . . . Total Part Build Rating . | . . . Parts Repaired . | . . . Time . | . . . Parts Recycled . | . . . Recycled Matter 23 | . . 23 Retrieved Matter . | . . . Retrieved Components . | . . . Parts Scanalyzed . | . . . Part Schematics Acquired . | . . . Parts Damaged . | . . . Bothacking | -11 -10 -9 ------------ Run | Yrd Mat Mat Used RIF Installer . | . . . Robots Hacked . | . . . Non-combat . | . . . Combat . | . . . Robot Hacks Applied . | . . . Relay Couplers Released . | . . . Fabnet Peak Effective % . | . . . Robots Rewired . | . . . Allies Hacked . | . . . Hacks Repelled . | . . . Allies | -11 -10 -9 -------- Run | Yrd Mat Mat Total Allies . | . . . Largest Group . | . . . Highest-Rated Group . | . . . Highest-Rated Ally . | . . . Total Orders . | . . . Ally Attacks . | . . . Total Damage . | . . . Kills . | . . . Allies Corrupted . | . . . Allies Melted . | . . . Intel | -11 -10 -9 ------- Run | Yrd Mat Mat Robot Analysis Total . | . . . Derelict Logs Recovered . | . . . Drone Launches . | . . . Drone Recoveries . | . . . Exploration | -11 -10 -9 ------------- Run | Yrd Mat Mat Turns Passed 1044 | 64 318 662 Spaces Moved 587 | 45 160 382 Core 15 | 15 . . Treads . | . . . Legs 572 | 30 160 382 Wheels . | . . . Hover . | . . . Flight . | . . . Fastest Speed 50 | 50 120 120 Average Speed 123 | 111 133 121 Slowest Speed 200 | 200 190 190 Overloaded Moves . | . . . Propulsion Burnouts . | . . . Robots Hopped . | . . . Cave-ins Triggered . | . . . Exploration Rate (%) 23 | 4 34 31 Regions Visited 2 Branch Regions . Pre-discovered Areas . | . . . Known Exits Taken 1 | . 1 . Unknown Exits Taken 1 | 1 . . Scrap Searched . | . . . Spaces Dug . | . . . Terrain Destroyed . | . . . Melee . | . . . Projectile . | . . . AOE . | . . . Terrain Rammed . | . . . Walls Destroyed . | . . . Machines Disabled . | . . . Actions | -11 -10 -9 --------- Run | Yrd Mat Mat Total 743 | 57 208 478 Wait . | . . . Move 585 | 44 159 382 Hop . | . . . Pick Up 29 | 9 6 14 Fast Attach 7 | 3 2 2 Attach 19 | 1 4 14 Detach . | . . . Swap 3 | . 2 1 Drop 7 | . 4 3 Fire 92 | . 30 62 Melee . | . . . Ram . | . . . Kick 1 | . 1 . Crush . | . . . Escape Stasis . | . . . Rewire . | . . . Trap . | . . . Miscellaneous . | . . . Route ------- -11/Scrapyard -10/Materials -9/Materials (discovered 1 exit: [*Min]) History --------- Turn | Location | Event 7 | -11/Scrapyard | Discovered new exit (range 15) 65 | -11/Scrapyard | Entered Materials 307 | -10/Materials | Build established: Mutant 375 | -10/Materials | Discovered new exit (range 8) 382 | -10/Materials | Identified exit to Materials 383 | -10/Materials | Entered another Materials area 383 | -9/Materials | Evolved 2 slots: Power x1, Utility x1 523 | -9/Materials | Core integrity fell below 50% 540 | -9/Materials | Lost 6 parts (2p2n2w) 724 | -9/Materials | Core integrity fell below 20% 844 | -9/Materials | Build established: Scavenger-Mutant 1023 | -9/Materials | Discovered new exit (range 13) 1045 | -9/Materials | Destroyed by Y-45 Defender with Beam Rifle Last Messages --------------- 00997_ W-16 Scout sends out distress signal. 01004_ T-07 Excavator is excavating. 01018_ U-05 Engineer lays Concrete. 01019_ Aluminum Leg destroyed. 01019_ Critical hit (Burn: +37). 01020_ U-05 Engineer lays Concrete. 01022_ Ion Engine destroyed. 01023_ EXIT=FOUND 01024_ O-16 Technician: "IFF HANDSHAKE FAILED. SECURING TERMINAL." 01025_ ALERT: Hostiles spotted, dispatching reinforcements to Terminal M003. 01033_ Acquired Imp. Aluminum Leg. 01034_ ALERT: Hostiles spotted, dispatching reinforcements to Terminal M012. 01039_ K-01 Serf destroyed. 01041_ Lgt. Assault Rifle destroyed. 01042_ Imp. Ion Engine destroyed. 01044_ Aluminum Leg destroyed. 01045_ Critical hit (Burn: +37). Map ----- +----------------------------------------------------+ | ????????????????????????/ + #?????# | | ????????????????????????# # % #?????#! | | ????????????????????????# # %% #?????# | | ????????????????????????# # ###########+ | | ????????????????????????# # % / | | ????????????????????????# # | ############ | | ????????????????????????# + #??????????? | | ????????????????????????# ##+########??????????? | | ??????????????????????###m #?????????????????? | | ??????????????????????# #uY #?????????????????? | | ??????????????????????# #?????????????????? | | ??????????????????????### #?????????????????? | | ????????????????????????# #?????????????????? | | ????????????????????????# #?????????????????? | | ????????????????????????# ###???????????????? | | ????????????????????????# #?????????######? | | ????????????????????????# +?????????#== #? | | ?????????????????######## #?????????#== ## | | ?????????????????# # ##+###?????????# # | | ?????????????????# # # #??????????# ! # | | ?????????????????# """ + # #??????????# + | | ?????????????????# """ # =%# #??????????# " # | | ?????????????????# """ # =# #??????????# T # | | ?????????????????# # # #??????????# " ## | | ?????????????????######## Y # #??????????# !#? | | ????????????????????????#@ # #??????????#### #? | | ????????????????????????# #####?????????????###? | | ????????????????????????# #????????????????????? | | ???????????????????????? #???????????????????? | | ???????????????????????? #???????????????????? | | ???????????????????????? < +???????????????????? | | ???????????????????????? gg #???????????????????? | | ???????????????????????# #???????????????????? | | ???????????????????????### ###???????????????????? | | ?????????????????????????? #?????????????????????? | | ?????????????????????????? #?????????????????????? | | ?????????????????????????? #?????????????????????? | | ?????????????????????????? #?????????????????????? | | ?????????????????????????? #?????????????????????? | | ??????????????????????????+#?????????????????????? | | ?????????????????????????????????????????????????? | | ?????????????????????????????????????????????????? | | ?????????????????????????????????????????????????? | | ?????????????????????????????????????????????????? | | ?????????????????????????????????????????????????? | | | | | | | | | | | +----------------------------------------------------+ Best States ------------- Heat Dissipation 28 Energy Generation 19 Energy Capacity 415 Matter Stores 300 Matter Capacity 300 Sight Range 18 Terrain Scan Density 85 Evasion (%) 55 Item Schematics ----------------- None Robot Schematics ------------------ None Fabricated ------------ Nothing Alien Tech Used ----------------- None Achievements -------------- None Challenges ------------ None Game ------ Seed AluminumLongswordAccelerator Manual? 0 Play Time 00:16:11 Cumulative 3.7 hours Start 2024.04.06 @ 15:32:25 End 2024.04.06 @ 15:50:32 Sessions 1 Manual Loads 0 Difficulty Rogue Special Mode None Game No. 9 Rogue 4 Adventurer 5 Explorer 0 Win Type - Total 0 Types 0/0/0/0/0/0/0/0/0 Lore% 0 Gallery% 11 Achievement% 10 Wizard Run 0 Options --------- Layout 1 ASCII 0 Keyboard 0 Movement Mouse Keybinds 0 Fullscreen 2 Font 32/Dina Map View 50x35 Zoom Use 0% Tactical HUD 1 Map Filters NONE Filters NONE Steam 1 RUN: edfb2587-e859-4afa-80df-9aa3ab4b53dd